[Event "Torneo Nuevo Centro. Jornada 11"]
[Site "Chess.com"]
[Date "2020.08.28"]
[Round "8"]
[White "Escalona Moncholi, Felix"]
[Black "Aguado, Pablo Luis"]
[Result "1-0"]
[WhiteElo "2102"]
[BlackElo "1922"]
[TimeControl "180+2"]
[EndTime "11:50:19 PDT"]
[Termination "Victoria de SchachSpielerESP por abandono"]

1. e4 {[%clk 0:03:01.9]} 1... e5 {[%clk 0:03:00.4]} 2. Nf3 {[%clk 0:03:02.9]}
2... Nf6 {[%clk 0:03:01.5]} 3. Nxe5 {[%clk 0:03:03.5]} 3... d6 {[%clk
0:03:02.2]} 4. Nf3 {[%clk 0:03:04.5]} 4... Nxe4 {[%clk 0:03:03.3]} 5. Nc3 {[%clk
0:03:06.2]} 5... Nxc3 {[%clk 0:03:03.6]} 6. dxc3 {[%clk 0:03:08.1]} 6... Be7
{[%clk 0:03:04.3]} 7. Be3 {[%clk 0:03:07.4]} 7... O-O {[%clk 0:03:04.9]} 8. Qd2
{[%clk 0:03:08.7]} 8... Nd7 {[%clk 0:03:05.7]} 9. O-O-O {[%clk 0:03:09.6]} 9...
Nf6 {[%clk 0:03:06.9]} 10. Bd3 {[%clk 0:03:09.1]} 10... c5 {[%clk 0:03:06.6]}
11. Kb1 {[%clk 0:03:09.3]} 11... b5 {[%clk 0:03:05.3]} 12. Bxb5 {[%clk
0:02:31.9]} 12... Rb8 {[%clk 0:03:05.9]} 13. Bc4 {[%clk 0:02:30.7]} 13... Ne4
{[%clk 0:02:52.7]} 14. Qe1 {[%clk 0:02:27.6]} 14... Bf6 {[%clk 0:02:47.8]} 15.
Ka1 {[%clk 0:02:22.8]} 15... Rxb2 {[%clk 0:02:14.5]} 16. Kxb2 {[%clk 0:02:16.8]}
16... Qb6+ {[%clk 0:02:14.5]} 17. Bb3 {[%clk 0:02:14.5]} 17... c4 {[%clk
0:02:11.2]} 18. Bxb6 {[%clk 0:02:14.4]} 1

[Event "Torneo Nuevo Centro. Jornada 11"]
[Site "Chess.com"]
[Date "2020.08.28"]
[Round "8"]
[White "Gutierrez Marco, Dario"]
[Black "Marques Montolio, Luis"]
[Result "1-0"]
[WhiteElo "1817"]
[BlackElo "1482"]
[TimeControl "180+2"]
[EndTime "11:51:16 PDT"]
[Termination "Victoria de rususs por abandono"]

1. e4 {[%clk 0:03:01.9]} 1... d5 {[%clk 0:03:00.5]} 2. e5 {[%clk 0:03:01.5]}
2... Bf5 {[%clk 0:03:00]} 3. d4 {[%clk 0:03:01.9]} 3... e6 {[%clk 0:03:00.9]} 4.
Nf3 {[%clk 0:03:02.1]} 4... a6 {[%clk 0:03:02.1]} 5. a3 {[%clk 0:03:02.1]} 5...
c5 {[%clk 0:03:01.7]} 6. c3 {[%clk 0:03:03]} 6... Nc6 {[%clk 0:03:01.8]} 7. b4
{[%clk 0:03:03.8]} 7... cxb4 {[%clk 0:02:57.9]} 8. cxb4 {[%clk 0:03:03.1]} 8...
Rc8 {[%clk 0:02:57.3]} 9. Bd3 {[%clk 0:02:59.5]} 9... Bg4 {[%clk 0:02:53.2]} 10.
Be3 {[%clk 0:02:57.2]} 10... Nge7 {[%clk 0:02:51.4]} 11. O-O {[%clk 0:02:56.1]}
11... Nf5 {[%clk 0:02:51.9]} 12. Bxf5 {[%clk 0:02:50]} 12... Bxf5 {[%clk
0:02:53.8]} 13. Nbd2 {[%clk 0:02:49]} 13... Be7 {[%clk 0:02:51.8]} 14. Nb3
{[%clk 0:02:49.5]} 14... b6 {[%clk 0:02:51]} 15. Rc1 {[%clk 0:02:43.7]} 15...
O-O {[%clk 0:02:44.4]} 16. Qe2 {[%clk 0:02:44.5]} 16... b5 {[%clk 0:02:36.5]}
17. Nc5 {[%clk 0:02:44.6]} 17... Bxc5 {[%clk 0:02:35.6]} 18. Rxc5 {[%clk
0:02:45.1]} 18... Qd7 {[%clk 0:02:29.3]} 19. Rfc1 {[%clk 0:02:45.1]} 19... Rc7
{[%clk 0:02:29.2]} 20. Nh4 {[%clk 0:02:38.4]} 20... Be4 {[%clk 0:02:28.1]} 21.
f3 {[%clk 0:02:35.9]} 21... Bg6 {[%clk 0:02:26.9]} 22. Nxg6 {[%clk 0:02:36.5]}
22... hxg6 {[%clk 0:02:28.8]} 23. Qc2 {[%clk 0:02:37.3]} 23... Rfc8 {[%clk
0:02:25]} 24. Kf1 {[%clk 0:02:20.7]} 24... f6 {[%clk 0:02:25.5]} 25. exf6 {[%clk
0:02:19.5]} 25... gxf6 {[%clk 0:02:27.4]} 26. Qxg6+ {[%clk 0:02:18.8]} 26... Kf8
{[%clk 0:02:27.9]} 27. Qxf6+ {[%clk 0:02:19]} 27... Kg8 {[%clk 0:02:27.2]} 28.
Qg6+ {[%clk 0:02:15.8]} 28... Kh8 {[%clk 0:02:22.1]} 29. Bf4 {[%clk 0:02:10]}
29... Rb7 {[%clk 0:02:20.3]} 30. Be5+ {[%clk 0:02:08.8]} 30... Nxe5 {[%clk
0:02:20.7]} 31. Rxc8+ {[%clk 0:02:09.2]} 1

[Event "Torneo Nuevo Centro. Jornada 11"]
[Site "Chess.com"]
[Date "2020.08.28"]
[Round "8"]
[White "Fernández Martin, Carlos"]
[Black "Carbonell Bofill, Carlos Eloy"]
[Result "0-1"]
[WhiteElo "1771"]
[BlackElo "1916"]
[TimeControl "180+2"]
[EndTime "11:51:56 PDT"]
[Termination "Victoria de MFCARLOS por abandono"]

1. e4 {[%clk 0:03:01.9]} 1... e6 {[%clk 0:02:46.1]} 2. Qe2 {[%clk 0:03:00.2]}
2... c5 {[%clk 0:02:46]} 3. Nf3 {[%clk 0:02:58.3]} 3... Nc6 {[%clk 0:02:47.4]}
4. Nc3 {[%clk 0:02:58.7]} 4... Be7 {[%clk 0:02:44.4]} 5. g3 {[%clk 0:02:55.6]}
5... d5 {[%clk 0:02:44.4]} 6. exd5 {[%clk 0:02:55.1]} 6... exd5 {[%clk
0:02:46.3]} 7. Bg2 {[%clk 0:02:54.9]} 7... Nf6 {[%clk 0:02:47]} 8. O-O {[%clk
0:02:55.3]} 8... O-O {[%clk 0:02:48.5]} 9. d3 {[%clk 0:02:55.6]} 9... Bg4 {[%clk
0:02:44.6]} 10. h3 {[%clk 0:02:50.4]} 10... Nd4 {[%clk 0:02:44.4]} 11. Qd1
{[%clk 0:02:41.9]} 11... Nxf3+ {[%clk 0:02:44.8]} 12. Bxf3 {[%clk 0:02:37]}
12... Bxh3 {[%clk 0:02:45]} 13. Re1 {[%clk 0:02:38]} 13... Re8 {[%clk
0:02:41.7]} 14. Bf4 {[%clk 0:02:34.1]} 14... Qd7 {[%clk 0:02:37.2]} 15. Kh2
{[%clk 0:02:21.9]} 15... Ng4+ {[%clk 0:02:34.4]} 16. Bxg4 {[%clk 0:02:11.7]}
16... Bxg4 {[%clk 0:02:36.3]} 17. Qd2 {[%clk 0:02:06.3]} 17... Qf5 {[%clk
0:02:32.9]} 18. Re5 {[%clk 0:02:04.1]} 18... Qg6 {[%clk 0:02:15.3]} 19. Nxd5
{[%clk 0:01:59.4]} 19... Bf6 {[%clk 0:01:50]} 20. Nxf6+ {[%clk 0:01:57.6]} 20...
gxf6 {[%clk 0:01:50]} 21. Rxe8+ {[%clk 0:01:53.6]} 21... Rxe8 {[%clk 0:01:51.9]}
22. Kg2 {[%clk 0:01:48.8]} 22... Qh5 {[%clk 0:01:51.4]} 23. Rg1 {[%clk
0:01:32.4]} 23... Bf3+ {[%clk 0:01:49.4]} 24. Kf1 {[%clk 0:01:29.8]} 24... Qh3+
{[%clk 0:01:50.7]} 0

[Event "Torneo Nuevo Centro. Jornada 11"]
[Site "Chess.com"]
[Date "2020.08.28"]
[Round "8"]
[White "Fernández Martín, Berta"]
[Black "Ainsa Jimenez, Lucas"]
[Result "0-1"]
[WhiteElo "563"]
[BlackElo "1138"]
[TimeControl "180+2"]
[EndTime "11:52:52 PDT"]
[Termination "Victoria de ainsaluck por abandono"]

1. e4 {[%clk 0:03:01]} 1... e5 {[%clk 0:02:50.1]} 2. Nf3 {[%clk 0:03:00.2]} 2...
Nc6 {[%clk 0:02:47.5]} 3. d4 {[%clk 0:03:00.2]} 3... d6 {[%clk 0:02:43.8]} 4. d5
{[%clk 0:02:56.6]} 4... Nce7 {[%clk 0:02:44.4]} 5. c4 {[%clk 0:02:53.3]} 5...
Ng6 {[%clk 0:02:42.1]} 6. g3 {[%clk 0:02:35]} 6... c5 {[%clk 0:02:32.4]} 7. Nc3
{[%clk 0:02:26.8]} 7... Be7 {[%clk 0:02:24.8]} 8. Bg2 {[%clk 0:02:26.1]} 8...
Nf6 {[%clk 0:02:24.2]} 9. O-O {[%clk 0:02:07.4]} 9... O-O {[%clk 0:02:16.7]} 10.
a3 {[%clk 0:01:54.3]} 10... Bg4 {[%clk 0:02:09.1]} 11. Be3 {[%clk 0:01:44.9]}
11... Qd7 {[%clk 0:02:08]} 12. Rb1 {[%clk 0:01:37.7]} 12... b6 {[%clk
0:02:07.2]} 13. Nb5 {[%clk 0:01:15.5]} 13... Nxe4 {[%clk 0:01:57.1]} 14. Qd3
{[%clk 0:00:59.6]} 14... Nf6 {[%clk 0:01:49.2]} 15. b4 {[%clk 0:00:28.1]} 15...
e4 {[%clk 0:01:39.3]} 16. Nd2 {[%clk 0:00:19.9]} 0

[Event "Torneo Nuevo Centro. Jornada 11"]
[Site "Chess.com"]
[Date "2020.08.28"]
[Round "8"]
[White "Martínez Escandell, Alfonso"]
[Black "Tormos Beltran, Maite"]
[Result "1-0"]
[WhiteElo "1906"]
[BlackElo "1485"]
[TimeControl "180+2"]
[EndTime "11:53:24 PDT"]
[Termination "Victoria de Alfonso10 por abandono"]

1. e4 {[%clk 0:03:01.9]} 1... d5 {[%clk 0:02:15.4]} 2. exd5 {[%clk 0:03:01.2]}
2... Qxd5 {[%clk 0:02:15.1]} 3. Nc3 {[%clk 0:03:01.8]} 3... Qd6 {[%clk
0:02:16.2]} 4. d4 {[%clk 0:02:59.9]} 4... Nf6 {[%clk 0:02:16.6]} 5. Be2 {[%clk
0:03:00.7]} 5... c6 {[%clk 0:02:17.6]} 6. Nf3 {[%clk 0:02:57.8]} 6... Bf5 {[%clk
0:02:18.3]} 7. O-O {[%clk 0:02:55.8]} 7... e6 {[%clk 0:02:19.4]} 8. Nh4 {[%clk
0:02:52.2]} 8... Bg6 {[%clk 0:02:15.7]} 9. g3 {[%clk 0:02:43.8]} 9... Be7 {[%clk
0:02:13.9]} 10. a3 {[%clk 0:02:32.7]} 10... Qd8 {[%clk 0:01:59.3]} 11. f4 {[%clk
0:02:25.7]} 11... Nd5 {[%clk 0:01:58.2]} 12. Nxd5 {[%clk 0:02:14.1]} 12... Qxd5
{[%clk 0:01:56.1]} 13. f5 {[%clk 0:02:09.1]} 13... Bxh4 {[%clk 0:01:41.2]} 14.
fxg6 {[%clk 0:02:05.4]} 14... hxg6 {[%clk 0:01:39.4]} 15. gxh4 {[%clk
0:01:56.8]} 15... Rxh4 {[%clk 0:01:35.4]} 16. Bf4 {[%clk 0:01:46.7]} 16... Nd7
{[%clk 0:01:21.2]} 17. Qd2 {[%clk 0:01:47]} 17... Rd8 {[%clk 0:01:12]} 18. Bf3
{[%clk 0:01:43]} 18... Qf5 {[%clk 0:01:07.2]} 19. Bg3 {[%clk 0:01:39.9]} 19...
Rh8 {[%clk 0:00:46.9]} 20. Bxc6 {[%clk 0:01:37]} 20... Rxh2 {[%clk 0:00:28.2]}
21. Qxh2 {[%clk 0:01:32.5]} 21... bxc6 {[%clk 0:00:25]} 22. Rxf5 {[%clk
0:01:26.3]} 1

[Event "Torneo Nuevo Centro. Jornada 11"]
[Site "Chess.com"]
[Date "2020.08.28"]
[Round "8"]
[White "Conejero Martínez, Víctor"]
[Black "del Campo Hernández, Ángel "]
[Result "1-0"]
[WhiteElo "1356"]
[BlackElo "1139"]
[TimeControl "180+2"]
[EndTime "11:53:30 PDT"]
[Termination "Victoria de Camelocota20 por abandono"]

1. d4 {[%clk 0:03:01.9]} 1... e6 {[%clk 0:02:56.6]} 2. c4 {[%clk 0:03:02.5]}
2... d5 {[%clk 0:02:56.6]} 3. Nc3 {[%clk 0:03:02.7]} 3... Nf6 {[%clk 0:02:54]}
4. Nf3 {[%clk 0:03:00.7]} 4... Be7 {[%clk 0:02:52.8]} 5. Bf4 {[%clk 0:02:58.5]}
5... c6 {[%clk 0:02:48.5]} 6. e3 {[%clk 0:02:58.3]} 6... Bd6 {[%clk 0:02:42.2]}
7. Bxd6 {[%clk 0:02:52.9]} 7... Qxd6 {[%clk 0:02:40.6]} 8. c5 {[%clk 0:02:54.4]}
8... Qd8 {[%clk 0:02:37.8]} 9. Bd3 {[%clk 0:02:52.3]} 9... Nbd7 {[%clk
0:02:35.2]} 10. O-O {[%clk 0:02:51.1]} 10... b6 {[%clk 0:02:35]} 11. b4 {[%clk
0:02:51.4]} 11... bxc5 {[%clk 0:02:21.9]} 12. bxc5 {[%clk 0:02:51.8]} 12... O-O
{[%clk 0:02:07.8]} 13. Qa4 {[%clk 0:02:51.8]} 13... Rb8 {[%clk 0:01:59.3]} 14.
Qxc6 {[%clk 0:02:50.4]} 14... Bb7 {[%clk 0:01:55.3]} 15. Qa4 {[%clk 0:02:48.6]}
15... Ne4 {[%clk 0:01:49.6]} 16. c6 {[%clk 0:02:41.4]} 16... Nxc3 {[%clk
0:01:48.8]} 17. Qxa7 {[%clk 0:02:26.4]} 17... Bxc6 {[%clk 0:01:42.6]} 18. Rac1
{[%clk 0:02:23.2]} 18... Nb5 {[%clk 0:01:35.5]} 19. Qa4 {[%clk 0:02:10]} 19...
Qb6 {[%clk 0:01:21]} 20. Rb1 {[%clk 0:02:06.8]} 20... Nxd4 {[%clk 0:01:11.8]}
21. Rxb6 {[%clk 0:02:05]} 21... Bxa4 {[%clk 0:01:04.4]} 22. Rxb8 {[%clk
0:02:03.4]} 22... Rxb8 {[%clk 0:00:57.7]} 23. Nxd4 {[%clk 0:02:02.8]} 23... Rd8
{[%clk 0:00:51.8]} 24. Bb5 {[%clk 0:02:01.1]} 24... Bxb5 {[%clk 0:00:50.9]} 25.
Nxb5 {[%clk 0:02:01.9]} 25... Ra8 {[%clk 0:00:42.4]} 26. Ra1 {[%clk 0:02:02]}
26... h6 {[%clk 0:00:40.4]} 27. Kf1 {[%clk 0:02:01.8]} 27... Nc5 {[%clk
0:00:40.4]} 28. Ke2 {[%clk 0:02:01]} 28... Ra5 {[%clk 0:00:34]} 29. Nc3 {[%clk
0:01:54.1]} 29... Nb3 {[%clk 0:00:30.3]} 30. Rb1 {[%clk 0:01:51.1]} 30... Rxa2+
{[%clk 0:00:28]} 31. Nxa2 {[%clk 0:01:50.3]} 1

[Event "Torneo Nuevo Centro. Jornada 11"]
[Site "Chess.com"]
[Date "2020.08.28"]
[Round "8"]
[White "Beneyto de Ramon, Guillermo"]
[Black "Kovacevic, Slobodan"]
[Result "0-1"]
[WhiteElo "1651"]
[BlackElo "2225"]
[TimeControl "180+2"]
[EndTime "11:53:32 PDT"]
[Termination "Victoria de nikko110 por jaque mate"]

1. c4 {[%clk 0:03:01.6]} 1... c5 {[%clk 0:02:58.4]} 2. Nc3 {[%clk 0:03:02.4]}
2... b6 {[%clk 0:02:57.1]} 3. g3 {[%clk 0:03:00.4]} 3... Bb7 {[%clk 0:02:56.4]}
4. Nf3 {[%clk 0:03:01.5]} 4... e6 {[%clk 0:02:55.6]} 5. Bg2 {[%clk 0:03:01.8]}
5... Nf6 {[%clk 0:02:55.8]} 6. O-O {[%clk 0:03:02.9]} 6... a6 {[%clk 0:02:55.4]}
7. d3 {[%clk 0:03:02.4]} 7... d6 {[%clk 0:02:53.5]} 8. Bg5 {[%clk 0:03:02]} 8...
Be7 {[%clk 0:02:52.8]} 9. Rb1 {[%clk 0:02:58.2]} 9... O-O {[%clk 0:02:51.8]} 10.
a3 {[%clk 0:02:54.9]} 10... Nbd7 {[%clk 0:02:50.6]} 11. b4 {[%clk 0:02:52.8]}
11... Qc7 {[%clk 0:02:50.6]} 12. bxc5 {[%clk 0:02:49.2]} 12... bxc5 {[%clk
0:02:49.5]} 13. Ne4 {[%clk 0:02:41.2]} 13... Bxe4 {[%clk 0:02:46.8]} 14. dxe4
{[%clk 0:02:38.9]} 14... Rab8 {[%clk 0:02:47]} 15. Qd3 {[%clk 0:02:14]} 15...
Qa5 {[%clk 0:02:35.2]} 16. Rbd1 {[%clk 0:02:07.6]} 16... Qa4 {[%clk 0:02:32.6]}
17. Qc2 {[%clk 0:01:45.7]} 17... Qxc2 {[%clk 0:02:28.3]} 18. e5 {[%clk
0:01:41.1]} 18... Nxe5 {[%clk 0:02:22.8]} 19. Nxe5 {[%clk 0:01:41]} 19... dxe5
{[%clk 0:02:21.9]} 20. Rc1 {[%clk 0:01:37.7]} 20... Qxe2 {[%clk 0:02:19.7]} 21.
Rfe1 {[%clk 0:01:37.9]} 21... Qb2 {[%clk 0:02:19.5]} 22. h3 {[%clk 0:01:22.7]}
22... Rfd8 {[%clk 0:02:17.9]} 23. Kh2 {[%clk 0:01:16.4]} 23... Qxf2 {[%clk
0:02:15.7]} 24. Rxe5 {[%clk 0:01:14.5]} 24... Rb2 {[%clk 0:02:10.5]} 25. Rg1
{[%clk 0:01:07.9]} 25... Rd3 {[%clk 0:02:07]} 26. Bf4 {[%clk 0:01:06]} 26... h6
{[%clk 0:02:04.8]} 27. Ree1 {[%clk 0:00:52.3]} 27... Nh5 {[%clk 0:01:58.5]} 28.
Be5 {[%clk 0:00:48.9]} 28... Ra2 {[%clk 0:01:54.4]} 29. Rb1 {[%clk 0:00:46.2]}
29... Nxg3 {[%clk 0:01:51.4]} 30. Bxg3 {[%clk 0:00:39.1]} 30... Qxg3+ {[%clk
0:01:49.1]} 31. Kh1 {[%clk 0:00:39.3]} 31... Qxh3+ {[%clk 0:01:47.6]} 32. Bxh3
{[%clk 0:00:39.9]} 32... Rxh3# {[%clk 0:01:46.5]} 0

[Event "Torneo Nuevo Centro. Jornada 11"]
[Site "Chess.com"]
[Date "2020.08.28"]
[Round "8"]
[White "Gukasov, Artem"]
[Black "Pedros Viudes, Santiago"]
[Result "0-1"]
[WhiteElo "1444"]
[BlackElo "1896"]
[TimeControl "180+2"]
[EndTime "11:53:39 PDT"]
[Termination "Victoria de ElGatoKamsky por abandono"]

1. e4 {[%clk 0:03:01.9]} 1... e6 {[%clk 0:02:59.9]} 2. d4 {[%clk 0:03:02.3]}
2... d5 {[%clk 0:03:00.8]} 3. e5 {[%clk 0:03:03.4]} 3... c5 {[%clk 0:03:01.3]}
4. c3 {[%clk 0:03:04.1]} 4... Qb6 {[%clk 0:03:01.7]} 5. Nf3 {[%clk 0:03:03.9]}
5... Nc6 {[%clk 0:03:02.1]} 6. a3 {[%clk 0:03:01.3]} 6... c4 {[%clk 0:03:02.6]}
7. Nbd2 {[%clk 0:02:55.4]} 7... Na5 {[%clk 0:03:03.3]} 8. Be2 {[%clk 0:02:51.7]}
8... Bd7 {[%clk 0:03:04.1]} 9. O-O {[%clk 0:02:50.2]} 9... O-O-O {[%clk
0:02:52.4]} 10. Rb1 {[%clk 0:02:41.3]} 10... Kb8 {[%clk 0:02:47.1]} 11. b4
{[%clk 0:02:41.1]} 11... cxb3 {[%clk 0:02:49]} 12. Nxb3 {[%clk 0:02:38.5]} 12...
Ba4 {[%clk 0:02:50.2]} 13. Nfd2 {[%clk 0:02:27.5]} 13... Rc8 {[%clk 0:02:37]}
14. Qc2 {[%clk 0:02:15.2]} 14... Ne7 {[%clk 0:02:05.2]} 15. Qb2 {[%clk
0:02:15.8]} 15... Nxb3 {[%clk 0:01:50.1]} 16. Nxb3 {[%clk 0:02:16.2]} 16... Nc6
{[%clk 0:01:40.6]} 17. Nc5 {[%clk 0:02:15.8]} 17... Qxb2 {[%clk 0:01:30.6]} 18.
Rxb2 {[%clk 0:02:15.8]} 18... Bxc5 {[%clk 0:01:31.2]} 19. dxc5 {[%clk
0:02:15.8]} 19... Nxe5 {[%clk 0:01:20.4]} 20. Bf4 {[%clk 0:02:10.3]} 20... f6
{[%clk 0:01:19.8]} 21. Be3 {[%clk 0:02:09.2]} 21... Ka8 {[%clk 0:01:09.1]} 22.
Bb5 {[%clk 0:02:07.9]} 22... Bxb5 {[%clk 0:01:09.1]} 23. Rxb5 {[%clk 0:02:08.2]}
23... Nc4 {[%clk 0:01:09.5]} 24. Rb3 {[%clk 0:02:07.2]} 24... Nxe3 {[%clk
0:01:08.4]} 25. fxe3 {[%clk 0:02:05]} 25... Rxc5 {[%clk 0:01:10.3]} 26. Rfb1
{[%clk 0:02:04.9]} 26... b6 {[%clk 0:01:10.1]} 27. Kf2 {[%clk 0:02:01]} 27...
Rhc8 {[%clk 0:01:11.1]} 28. Rc1 {[%clk 0:02:01.5]} 28... Kb7 {[%clk 0:01:11.1]}
29. Ke2 {[%clk 0:02:02.5]} 29... Rc4 {[%clk 0:01:05.9]} 30. Kd3 {[%clk
0:02:02.9]} 30... e5 {[%clk 0:01:06.2]} 31. Rb4 {[%clk 0:02:03.7]} 31... Rxb4
{[%clk 0:01:04.6]} 32. axb4 {[%clk 0:02:03.8]} 32... a5 {[%clk 0:00:58.6]} 33.
bxa5 {[%clk 0:02:01.9]} 33... bxa5 {[%clk 0:01:00.5]} 34. Ra1 {[%clk 0:01:58.2]}
34... Ra8 {[%clk 0:01:00.5]} 35. Rb1+ {[%clk 0:01:58.3]} 35... Kc6 {[%clk
0:01:01.4]} 36. c4 {[%clk 0:01:57.2]} 36... a4 {[%clk 0:01:01.5]} 37. cxd5+
{[%clk 0:01:57.4]} 37... Kxd5 {[%clk 0:01:02.6]} 38. e4+ {[%clk 0:01:56.8]}
38... Kc5 {[%clk 0:01:03.3]} 39. Kc3 {[%clk 0:01:57.8]} 39... a3 {[%clk
0:01:03.9]} 40. Ra1 {[%clk 0:01:58.9]} 40... a2 {[%clk 0:01:04.4]} 41. Kb3
{[%clk 0:01:56.6]} 41... Kd4 {[%clk 0:01:04.8]} 0

[Event "Torneo Nuevo Centro. Jornada 11"]
[Site "Chess.com"]
[Date "2020.08.28"]
[Round "8"]
[White "Soliva Ruiz, Ramon"]
[Black "Bendayán Claros, Aaron"]
[Result "0-1"]
[WhiteElo "1515"]
[BlackElo "1979"]
[TimeControl "180+2"]
[EndTime "11:53:42 PDT"]
[Termination "Victoria de Cuajada_Zero por tiempo"]

1. d4 {[%clk 0:03:01.4]} 1... d5 {[%clk 0:02:57.2]} 2. Bf4 {[%clk 0:03:01.9]}
2... e6 {[%clk 0:02:50.5]} 3. e3 {[%clk 0:03:02.6]} 3... Bd6 {[%clk 0:02:50.4]}
4. Bg3 {[%clk 0:03:02.2]} 4... Bxg3 {[%clk 0:02:50.6]} 5. hxg3 {[%clk
0:03:02.7]} 5... f5 {[%clk 0:02:51.5]} 6. Be2 {[%clk 0:03:03.2]} 6... Nf6 {[%clk
0:02:51.8]} 7. Nf3 {[%clk 0:03:03.7]} 7... Nbd7 {[%clk 0:02:51.6]} 8. a3 {[%clk
0:03:00.6]} 8... c6 {[%clk 0:02:50.4]} 9. c4 {[%clk 0:03:01.1]} 9... O-O {[%clk
0:02:50.2]} 10. Nc3 {[%clk 0:03:01.8]} 10... Ne4 {[%clk 0:02:50.8]} 11. Rc1
{[%clk 0:02:51.4]} 11... Qe7 {[%clk 0:02:41]} 12. cxd5 {[%clk 0:02:49.4]} 12...
exd5 {[%clk 0:02:37.8]} 13. b4 {[%clk 0:02:40.3]} 13... a6 {[%clk 0:02:28.1]}
14. O-O {[%clk 0:02:08.6]} 14... Rf6 {[%clk 0:02:18.2]} 15. Nd2 {[%clk
0:01:57.5]} 15... Rh6 {[%clk 0:02:03.8]} 16. Ndxe4 {[%clk 0:01:56.1]} 16... fxe4
{[%clk 0:02:04.6]} 17. Bg4 {[%clk 0:01:45.6]} 17... Nf6 {[%clk 0:02:03.6]} 18.
Bxc8 {[%clk 0:01:45.5]} 18... Rxc8 {[%clk 0:02:05.5]} 19. Qe2 {[%clk 0:01:30.6]}
19... Qe6 {[%clk 0:01:59]} 20. f3 {[%clk 0:01:20.2]} 20... exf3 {[%clk
0:01:58.7]} 21. Rxf3 {[%clk 0:01:16]} 21... Re8 {[%clk 0:01:57.3]} 22. Rcf1
{[%clk 0:01:12.8]} 22... Rg6 {[%clk 0:01:55.6]} 23. Qf2 {[%clk 0:01:10.6]} 23...
h6 {[%clk 0:01:53.2]} 24. Nd1 {[%clk 0:00:27.2]} 24... Kh7 {[%clk 0:01:50.3]}
25. Rf5 {[%clk 0:00:16.2]} 25... Ne4 {[%clk 0:01:48.3]} 26. Qe1 {[%clk
0:00:03.6]} 26... Nxg3 {[%clk 0:01:46.6]} 0

[Event "Torneo Nuevo Centro. Jornada 11"]
[Site "Chess.com"]
[Date "2020.08.28"]
[Round "8"]
[White "Miranda Calvo, Max Rodrigo"]
[Black "Grigorev, Artur "]
[Result "1-0"]
[WhiteElo "1301"]
[BlackElo "915"]
[TimeControl "180+2"]
[EndTime "11:54:05 PDT"]
[Termination "Victoria de bas-max-miranda por abandono"]

1. e4 {[%clk 0:03:01.9]} 1... e5 {[%clk 0:03:00.1]} 2. Nf3 {[%clk 0:03:02.8]}
2... Nc6 {[%clk 0:03:00.4]} 3. Bc4 {[%clk 0:03:01.3]} 3... Bc5 {[%clk
0:02:59.2]} 4. d3 {[%clk 0:03:00.7]} 4... Nf6 {[%clk 0:02:59.3]} 5. Bg5 {[%clk
0:03:00.9]} 5... O-O {[%clk 0:02:58.4]} 6. Nc3 {[%clk 0:03:00.9]} 6... h6 {[%clk
0:02:58.4]} 7. Bh4 {[%clk 0:03:01.1]} 7... d6 {[%clk 0:02:55.5]} 8. Nd5 {[%clk
0:02:59.5]} 8... g5 {[%clk 0:02:35.7]} 9. Nxf6+ {[%clk 0:02:57.3]} 9... Qxf6
{[%clk 0:02:32.8]} 10. Bg3 {[%clk 0:02:58.4]} 10... h5 {[%clk 0:02:27.2]} 11. h3
{[%clk 0:02:58.3]} 11... h4 {[%clk 0:02:17.8]} 12. Bh2 {[%clk 0:02:58]} 12...
Be6 {[%clk 0:02:13.2]} 13. Bxe6 {[%clk 0:02:57.2]} 13... Qxe6 {[%clk 0:02:12.5]}
14. Nxg5 {[%clk 0:02:56.7]} 14... Qf6 {[%clk 0:02:04]} 15. Nf3 {[%clk
0:02:57.5]} 15... Nd4 {[%clk 0:02:01.6]} 16. Nxd4 {[%clk 0:02:55.7]} 16... Bxd4
{[%clk 0:02:01.8]} 17. Qg4+ {[%clk 0:02:56.2]} 17... Kh8 {[%clk 0:01:53.9]} 18.
O-O {[%clk 0:02:53.6]} 18... Rg8 {[%clk 0:01:47.2]} 19. Qh5+ {[%clk 0:02:50.3]}
19... Kg7 {[%clk 0:01:41.1]} 20. c3 {[%clk 0:02:50.3]} 20... Bc5 {[%clk
0:01:36.7]} 21. Qe2 {[%clk 0:02:36.4]} 21... Rgd8 {[%clk 0:01:31.4]} 22. Rad1
{[%clk 0:02:30.9]} 22... Kf8 {[%clk 0:01:20.5]} 23. Qd2 {[%clk 0:02:20.7]} 23...
Ke7 {[%clk 0:01:16.8]} 24. d4 {[%clk 0:02:19.6]} 24... Rg8 {[%clk 0:01:15.9]}
25. dxc5 {[%clk 0:02:19.2]} 25... Qg6 {[%clk 0:01:05.4]} 26. f3 {[%clk 0:02:19]}
26... dxc5 {[%clk 0:01:01.3]} 27. Qd7+ {[%clk 0:02:18.2]} 27... Kf6 {[%clk
0:01:01]} 28. Rf2 {[%clk 0:02:17.7]} 28... Rad8 {[%clk 0:00:58.9]} 29. Qxd8+
{[%clk 0:02:04]} 29... Rxd8 {[%clk 0:00:58.6]} 30. Rxd8 {[%clk 0:02:03.7]} 30...
Qg5 {[%clk 0:00:50.4]} 31. Rfd2 {[%clk 0:02:02.4]} 31... Kg6 {[%clk 0:00:47.1]}
32. Rg8+ {[%clk 0:02:00.9]} 32... Kh5 {[%clk 0:00:47.7]} 33. Rxg5+ {[%clk
0:02:00.2]} 33... Kxg5 {[%clk 0:00:49.6]} 34. Rd7 {[%clk 0:01:59.8]} 34... f6
{[%clk 0:00:49]} 35. Rxc7 {[%clk 0:01:56.6]} 35... b6 {[%clk 0:00:26.7]} 36.
Rxa7 {[%clk 0:01:57.1]} 1